bitfinex-derivatives/quotes_SOLF0:USTF0_20240815
["timestamp","ask_amount","ask_price","bid_price","bid_amount"]
[1723699492841,11.837,144.29,144.21,33.26]
[1723699493252,4.88,144.29,144.21,33.26]
[1723699493743,3.4653,144.28,144.24,3.466]
[1723699493948,0.04987528,144.26,144.24,0.05332582]
[1723699494541,4.92,144.3,144.24,0.05332582]
[1723699494745,6.957,144.36,144.28,33.26]
[1723699495048,4.92,144.36,144.28,33.26]
[1723699495649,33.26,144.39,144.28,33.26]
[1723699495947,15.7695,144.4,144.3,33.26]
[1723699496148,3.463,144.37,144.32,3.4642]
[1723699496450,0.05032359,144.33,144.32,3.4642]
[1723699496850,3.4635,144.36,144.31,3.51543681]
[1723699497049,0.04973544,144.34,144.31,3.4644]
[1723699497250,0.04973544,144.34,144.33,3.464]
[1723699497448,3.4632,144.37,144.32,0.04561591]
[1723699497653,0.0467534,144.35,144.32,0.04561591]
[1723699498753,0.0467534,144.35,144.33,3.4638]
[1723699499357,0.0467534,144.35,144.34,3.4638]
[1723699499653,0.0467534,144.35,144.32,0.04561591]
[1723699499852,0.0467534,144.35,144.32,1.35951591]
[1723699500152,3.463,144.38,144.32,35.86051591]
[1723699500348,4.92,144.4,144.32,35.86051591]
[1723699500649,226.0,144.43,144.35,33.26]
[1723699500953,4.92,144.44,144.35,33.26]
[1723699501550,11.851,144.47,144.38,0.04439546]
[1723699501746,0.37827245,144.46,144.38,1.2387]
[1723699501942,0.37827245,144.46,144.41,0.04773512]
[1723699502142,6.931,144.45,144.41,0.04773512]
[1723699502358,0.37829643,144.44,144.41,0.04773512]
[1723699502748,3.4618,144.42,144.41,0.04773512]
[1723699505352,8.3818,144.42,144.41,0.04773512]
[1723699505555,11.851,144.42,144.33,1.2387]
[1723699505748,0.04966438,144.39,144.33,1.2387]
[1723699506648,0.04966438,144.39,144.36,3.4633]
[1723699506854,0.04966438,144.39,144.35,0.05161444]
[1723699507952,0.04966438,144.39,144.37,3.4628]
[1723699508255,0.04966438,144.39,144.35,0.05161444]
[1723699509054,0.04966438,144.39,144.36,3.4631]
[1723699509254,0.04966438,144.39,144.35,0.05161444]
[1723699509458,0.04966438,144.39,144.38,3.4628]
[1723699509651,6.931,144.45,144.36,33.26]
[1723699510056,3.4618,144.43,144.39,3.4624]
[1723699510364,6.931,144.45,144.36,33.26]
[1723699510655,3.462,144.42,144.39,0.05178119]
[1723699510860,6.931,144.45,144.39,0.05178119]
[1723699511054,3.4619,144.42,144.39,0.05178119]
[1723699512260,6.931,144.45,144.39,0.05178119]
[1723699512261,3.4617,144.43,144.39,3.51418119]
[1723699512961,3.4615,144.44,144.4,3.4623]
[1723699513659,6.931,144.45,144.4,4.92]
[1723699513961,6.931,144.48,144.4,4.92]
[1723699514158,6.931,144.5,144.41,1.3493]
[1723699514357,3.461,144.46,144.43,0.04597008]
[1723699514962,3.461,144.46,144.43,3.50757008]
[1723699515150,3.461,144.46,144.43,0.04597008]
[1723699515354,6.931,144.48,144.43,0.04597008]
[1723699515863,3.4608,144.47,144.43,0.04597008]
[1723699516058,3.4608,144.47,144.43,3.50757008]
[1723699516253,6.931,144.48,144.43,4.96597008]
[1723699516457,3.4608,144.47,144.43,4.96597008]
[1723699516658,3.4608,144.47,144.43,8.42757008]
[1723699517260,11.851,144.51,144.43,4.96597008]
[1723699517462,6.931,144.51,144.43,4.96597008]
[1723699517755,3.4604,144.49,144.44,3.4612]
[1723699517954,3.4604,144.49,144.44,8.3812]
[1723699518157,6.931,144.51,144.45,0.04674278]
[1723699518354,3.4605,144.48,144.45,0.04674278]
[1723699518761,6.931,144.52,144.45,0.04674278]
[1723699519357,6.931,144.54,144.45,0.04674278]
[1723699519561,3.4602,144.5,144.45,3.50774278]
[1723699519756,3.4602,144.5,144.48,0.04371764]
[1723699519960,8.1675,144.56,144.48,0.04371764]
[1723699520260,3.4596,144.52,144.48,3.50411764]
[1723699520459,8.1675,144.56,144.48,4.96371764]
[1723699520666,3.4596,144.52,144.48,4.96371764]
[1723699521059,8.1675,144.56,144.48,4.96371764]
[1723699521363,6.931,144.54,144.48,0.04371764]
[1723699521757,3.4602,144.49,144.48,0.04371764]
[1723699522166,26.57,144.52,144.48,0.04371764]
[1723699522761,33.501,144.52,144.48,0.04371764]
[1723699522963,3.4602,144.49,144.48,0.04371764]
[1723699523668,10.3912,144.49,144.48,0.04371764]
[1723699524064,3.4612,144.45,144.4,26.57]
[1723699524262,33.501,144.48,144.39,5.12]
[1723699524465,33.501,144.48,144.4,3.4622]
[1723699525461,33.54744204,144.46,144.43,0.04572454]
[1723699525666,3.4614,144.44,144.43,0.04572454]
[1723699526481,36.9624,144.44,144.43,0.04572454]
[1723699527966,3.4614,144.44,144.43,0.04572454]
[1723699529279,3.4622,144.41,144.34,35.7683]
[1723699529468,38.37,144.45,144.34,35.7683]
[1723699529469,45.301,144.45,144.34,35.7683]
[1723699529671,38.37,144.45,144.37,3.4628]
[1723699529977,3.462,144.42,144.37,3.4628]
[1723699530367,3.462,144.42,144.38,3.4628]
[1723699530778,0.04621218,144.41,144.39,3.4625]
[1723699531079,0.04621218,144.41,144.38,33.2953014]
[1723699531275,0.04621218,144.41,144.39,3.4624]
[1723699531672,0.04621218,144.41,144.38,33.2953014]
[1723699531873,0.04621218,144.41,144.38,3.5080014]
[1723699532883,0.04621218,144.41,144.39,3.4625]
[1723699534769,0.04621218,144.41,144.38,3.5080014]
[1723699535080,0.04621218,144.41,144.38,0.0453014]
[1723699535381,3.4626,144.39,144.38,0.0453014]
[1723699535771,6.931,144.4,144.31,1.3173]
[1723699536073,33.25,144.39,144.31,1.3173]
[1723699536271,40.181,144.39,144.27,39.6467]
[1723699536474,40.181,144.39,144.27,34.5267]
[1723699536671,40.181,144.39,144.29,3.4648]
[1723699536877,40.181,144.39,144.27,34.5267]
[1723699537072,0.05305389,144.35,144.33,0.05090589]
[1723699537271,5.12,144.34,144.27,1.2767]
[1723699537777,12.051,144.34,144.27,1.2767]
[1723699537977,12.051,144.34,144.26,3.4655]
[1723699538480,0.04733994,144.31,144.29,0.04603781]
[1723699539181,3.4649,144.3,144.29,0.04603781]
[1723699542792,3.4658,144.26,144.23,1.2694]
[1723699543088,5.12,144.29,144.19,35.8453]
[1723699543276,3.4661,144.25,144.19,3.8879]
[1723699543476,6.931,144.28,144.2,3.467]
[1723699543784,6.931,144.28,144.19,3.8879]
[1723699543988,33.25,144.27,144.23,0.04633782]
[1723699544192,0.04473539,144.25,144.23,0.04633782]
[1723699545178,3.4662,144.24,144.23,0.04633782]
[1723699545892,0.04473539,144.25,144.01,235.4152]
[1723699546081,12.051,144.26,144.17,3.4677]
[1723699546390,3.4668,144.22,144.15,2.5745]
[1723699546589,3.4668,144.22,144.18,3.4674]
[1723699546886,12.051,144.26,144.15,2.5745]
[1723699547082,0.0487989,144.21,144.19,3.51252068]
[1723699547285,12.051,144.26,144.19,3.51252068]
[1723699547487,0.04550467,144.21,144.19,3.51252068]
[1723699547685,3.4666,144.23,144.19,3.51252068]
[1723699547890,0.04700149,144.21,144.19,3.51252068]
[1723699548097,3.51400149,144.21,144.19,0.04532068]
[1723699548791,3.4671,144.2,144.19,0.04532068]
[1723699553691,42.1181,144.2,144.19,0.04532068]
[1723699553887,3.4683,144.15,144.12,3.857]
[1723699554190,3.4683,144.15,144.12,2.5712]
[1723699554489,33.571,144.2,144.12,2.5712]
[1723699554695,5.08,144.19,144.12,2.5712]
[1723699554881,5.08,144.19,144.14,3.4684]
[1723699555088,0.04413709,144.17,144.15,0.05242952]
[1723699555486,0.04413709,144.17,144.15,3.52062952]
[1723699555687,0.04413709,144.17,144.15,0.05242952]
[1723699556083,0.04413709,144.17,144.16,3.4681]
[1723699557589,0.04413709,144.17,144.15,3.52062952]
[1723699557982,0.04413709,144.17,144.15,0.05242952]
[1723699560293,3.4681,144.16,144.15,0.05242952]
[1723699560494,0.04413709,144.17,144.15,0.05242952]
[1723699561194,0.04413709,144.17,144.16,3.4681]
[1723699561394,5.08,144.22,144.15,26.69242952]
[1723699561595,1.309,144.26,144.17,26.64]
[1723699561596,26.64,144.26,144.17,26.64]
[1723699561797,31.72,144.26,144.17,26.64]
[1723699562097,3.4665,144.23,144.17,26.64]
[1723699562292,5.08,144.26,144.17,26.64]
[1723699562494,3.4662,144.25,144.17,26.64]
[1723699562699,0.04995783,144.21,144.19,0.0442368]
[1723699563097,3.51641103,144.21,144.19,0.0442368]
[1723699563303,0.04931103,144.21,144.19,0.0442368]
[1723699564104,3.4671,144.2,144.19,0.0442368]
[1723699566196,0.04931103,144.21,144.19,0.0442368]
[1723699566794,0.04931103,144.21,144.19,3.5115368]
[1723699567106,0.04931103,144.21,144.19,0.0442368]
[1723699567699,3.51621103,144.21,144.19,0.0442368]
[1723699568096,0.04931103,144.21,144.19,0.0442368]
[1723699568301,3.4671,144.2,144.19,0.0442368]
[1723699568505,0.04931103,144.21,144.19,0.0442368]
[1723699571705,0.04931103,144.21,144.19,3.5114368]
[1723699571905,0.04931103,144.21,144.19,0.0442368]
[1723699572208,0.04931103,144.21,144.2,3.4671]
[1723699574207,5.08,144.26,144.23,3.4662]
[1723699574402,33.571,144.29,144.23,3.4662]
[1723699574699,26.64,144.29,144.23,3.4662]
[1723699575401,3.4659,144.26,144.22,3.4665]
[1723699575602,0.04482459,144.27,144.25,0.05170036]
[1723699575805,26.68482459,144.27,144.25,0.05170036]
[1723699576005,3.4661,144.25,144.21,3.4668]
[1723699576404,3.4661,144.25,144.22,0.05292931]
[1723699576803,26.64,144.25,144.22,0.05292931]
[1723699577208,3.4664,144.23,144.22,0.05292931]
[1723699577413,30.1064,144.23,144.22,0.05292931]
[1723699578011,3.4664,144.23,144.22,0.05292931]
[1723699580202,0.0512242,144.24,144.22,0.05292931]
[1723699580405,0.0512242,144.24,144.23,3.4664]
[1723699584508,0.0512242,144.24,144.22,0.05292931]
[1723699584907,26.6912242,144.24,144.22,0.05292931]
[1723699585112,3.4664,144.23,144.22,0.05292931]
[1723699588320,3.5175242,144.24,144.22,0.05292931]
[1723699589627,3.4664,144.23,144.22,0.05292931]
[1723699590126,0.0512242,144.24,144.22,0.05292931]
[1723699590415,26.6912242,144.24,144.22,0.05292931]
[1723699590819,3.4664,144.23,144.22,0.05292931]
[1723699595018,0.0512242,144.24,144.22,0.05292931]
[1723699595811,3.5174242,144.24,144.22,0.05292931]
[1723699599521,0.0512242,144.24,144.22,0.05292931]
[1723699600233,0.0512242,144.24,144.22,3.51952931]
[1723699600524,0.0512242,144.24,144.22,0.05292931]
[1723699602318,3.5174242,144.24,144.22,0.05292931]
[1723699602527,0.0512242,144.24,144.22,0.05292931]
[1723699603027,3.4664,144.23,144.22,0.05292931]
[1723699604527,30.1575242,144.24,144.22,0.05292931]
[1723699604727,0.0512242,144.24,144.22,0.05292931]
[1723699605220,3.4664,144.23,144.22,0.05292931]
[1723699606819,0.0512242,144.24,144.22,0.05292931]
[1723699606820,3.5175242,144.24,144.22,0.05292931]
[1723699607023,0.0512242,144.24,144.22,0.05292931]
[1723699608027,3.5175242,144.24,144.22,0.05292931]
[1723699608826,3.4664,144.23,144.22,0.05292931]
[1723699611531,30.1064,144.23,144.22,0.05292931]
[1723699611736,33.571,144.23,144.11,4.98]
[1723699611929,26.64,144.2,144.12,17.05271747]
[1723699612133,3.4682,144.16,144.13,17.05271747]
[1723699612328,3.4682,144.16,144.1,26.64]
[1723699612629,11.911,144.19,144.11,17.05682752]
[1723699612933,0.0443469,144.14,144.12,17.10409253]
[1723699613136,4.98,144.19,144.13,17.05682752]
[1723699613336,0.04454254,144.14,144.13,17.05682752]
[1723699613629,26.64,144.25,144.14,3.50107179]
[1723699613838,3.4672,144.2,144.15,19.60472752]
[1723699614033,4.98,144.23,144.16,43.68564683]
[1723699614240,33.571,144.25,144.19,3.4672]
[1723699614241,4.98,144.24,144.19,3.4672]
[1723699614435,3.4666,144.23,144.19,3.4672]
[1723699614634,0.04531364,144.23,144.2,0.0454361]
[1723699615934,3.4669,144.21,144.2,0.0454361]
[1723699616233,0.04531364,144.23,144.2,0.0454361]
[1723699616430,3.4668,144.22,144.2,0.0454361]
[1723699618333,3.4669,144.21,144.2,0.0454361]
[1723699620539,30.1069,144.21,144.2,0.0454361]
[1723699621532,30.1069,144.21,144.14,20.50918959]
[1723699621533,3.4679,144.17,144.13,1.2182]
[1723699621738,6.931,144.23,144.14,17.04319286]
[1723699621938,4.88,144.23,144.15,17.03753476]
[1723699622134,4.88,144.23,144.14,30.1735738]
[1723699622329,4.88,144.23,144.17,3.4677]
[1723699622535,3.4669,144.21,144.17,3.4677]
[1723699622732,0.05167936,144.21,144.19,0.04441454]
[1723699622940,0.05167936,144.21,144.18,3.4675]
[1723699623136,0.05167936,144.21,144.19,0.04879341]
[1723699623536,3.4671,144.2,144.19,0.04879341]
[1723699627746,30.1071,144.2,144.19,0.04879341]
[1723699633848,37.0381,144.2,144.19,0.04879341]
[1723699634349,3.4681,144.16,144.13,1.2182]
[1723699635044,3.4683,144.15,144.13,1.2182]
[1723699635454,3.51643771,144.15,144.13,1.26508648]
[1723699636545,3.4686,144.14,144.13,0.04688648]
[1723699636945,30.1086,144.14,144.13,0.04688648]
[1723699640445,3.4686,144.14,144.13,0.04688648]
[1723699640852,0.04813771,144.15,144.13,0.04688648]
[1723699643650,0.04813771,144.15,144.13,3.51568648]
[1723699643950,4.88,144.17,144.13,0.04688648]
[1723699644151,3.4676,144.19,144.14,3.4684]
[1723699644356,31.38,144.2,144.14,3.4684]
[1723699644855,3.4679,144.17,144.14,3.4684]
[1723699645253,3.51413061,144.18,144.14,3.4684]
[1723699645453,3.51413061,144.18,144.15,3.4683]
[1723699646257,3.51413061,144.18,144.14,3.4685]
[1723699646457,3.51413061,144.18,144.13,2.52658648]
[1723699647651,3.51413061,144.18,144.15,3.4683]
[1723699647857,3.4679,144.17,144.13,2.52658648]
[1723699648856,3.4679,144.17,144.14,3.4685]
[1723699650469,0.04643061,144.18,144.13,2.52658648]
[1723699651864,0.04643061,144.18,144.16,3.468]
[1723699652259,0.04643061,144.18,144.13,2.52658648]
[1723699652461,0.04643061,144.18,144.15,3.4682]
[1723699652766,3.51423061,144.18,144.15,3.4682]
[1723699653667,0.04643061,144.18,144.16,3.4681]
[1723699654365,3.51403061,144.18,144.15,3.4682]
[1723699655267,0.04643061,144.18,144.16,3.4681]
[1723699655971,3.51403061,144.18,144.16,3.4681]
[1723699656469,0.04643061,144.18,144.15,3.4683]
[1723699656763,3.51413061,144.18,144.15,3.4683]
[1723699657767,3.4679,144.17,144.14,3.4685]
[1723699657965,0.04643061,144.18,144.13,2.52658648]
[1723699658359,3.51413061,144.18,144.15,3.4682]
[1723699660268,0.04643061,144.18,144.13,2.52658648]
[1723699660464,0.04643061,144.18,144.13,6.04920338]
[1723699660670,0.04643061,144.18,144.13,2.52658648]
[1723699660861,3.51403061,144.18,144.15,3.4681]
[1723699661466,3.51403061,144.18,144.15,3.4683]
[1723699661666,0.04643061,144.18,144.14,3.42722353]
[1723699661872,0.04643061,144.18,144.15,1.2723]
[1723699662068,0.04643061,144.18,144.16,3.468]
[1723699665672,4.74,144.24,144.15,27.9123]
[1723699665875,10.65,144.23,144.17,10.65]
[1723699666177,3.4668,144.22,144.17,10.65]
[1723699666368,10.65,144.23,144.17,10.65]
[1723699666569,3.4671,144.21,144.18,3.4675]
[1723699666774,3.51416252,144.21,144.19,0.05096996]
[1723699667377,0.04706252,144.21,144.19,0.05096996]
[1723699668174,0.04706252,144.21,144.19,3.51836996]
[1723699668576,0.04706252,144.21,144.19,0.05096996]
[1723699668877,0.04706252,144.21,144.19,3.51816996]
[1723699669279,0.04706252,144.21,144.2,3.4671]
[1723699670376,4.74,144.27,144.2,10.65]
[1723699670575,10.65,144.27,144.2,11.9839]
[1723699670774,4.74,144.3,144.2,11.9839]
[1723699670775,14.1158,144.26,144.21,1.3279]
[1723699670972,14.1158,144.26,144.22,3.4665]
[1723699671179,10.65,144.26,144.21,1.3279]
[1723699671377,14.1161,144.25,144.21,4.7947]
[1723699671582,10.65,144.23,144.22,0.05116992]
[1723699672078,0.04830288,144.25,144.22,0.05116992]
[1723699672079,3.4663,144.24,144.22,0.05116992]
[1723699672283,10.69830288,144.25,144.22,0.05116992]
[1723699673684,3.4663,144.24,144.22,0.05116992]
[1723699674381,14.1164,144.23,144.22,0.05116992]
[1723699675479,21.0474,144.23,144.22,0.05116992]
[1723699677583,14.1164,144.23,144.22,0.05116992]
[1723699678187,3.4664,144.23,144.22,0.05116992]
[1723699678685,14.1163,144.24,144.22,0.05116992]
[1723699680793,14.16430288,144.25,144.22,0.05116992]
[1723699681691,10.69830288,144.25,144.22,0.05116992]
[1723699681988,10.69830288,144.25,144.22,3.51766992]
[1723699682290,0.04830288,144.25,144.22,3.51766992]
[1723699682885,0.04830288,144.25,144.22,0.05116992]
[1723699683692,0.04830288,144.25,144.22,3.51766992]
[1723699684294,3.51420288,144.25,144.22,0.05116992]
[1723699685395,3.4662,144.24,144.22,0.05116992]
[1723699686488,14.16440288,144.25,144.22,0.05116992]
[1723699686988,3.51440288,144.25,144.22,3.51766992]
[1723699688183,10.69830288,144.25,144.22,0.05116992]
[1723699688589,3.4664,144.24,144.22,0.05116992]
[1723699690297,3.51430288,144.25,144.22,3.51766992]
[1723699690502,0.04830288,144.25,144.22,0.05116992]
[1723699690695,10.69830288,144.25,144.22,0.05116992]
[1723699690894,3.4664,144.23,144.22,0.05116992]
[1723699695305,3.4663,144.24,144.22,0.05116992]
[1723699698799,3.51430288,144.25,144.22,0.05116992]
[1723699700707,3.4663,144.24,144.22,0.05116992]
[1723699701300,0.04830288,144.25,144.22,0.05116992]
[1723699701511,10.65,144.24,144.22,0.05116992]
[1723699701810,14.1163,144.24,144.22,0.05116992]
[1723699702605,3.51430288,144.25,144.22,0.05116992]
[1723699703404,3.4662,144.24,144.22,0.05116992]
[1723699704904,3.4664,144.23,144.22,0.05116992]
[1723699705409,3.51440288,144.25,144.22,0.05116992]
[1723699709411,0.04830288,144.25,144.22,3.51766992]
[1723699710012,3.51440288,144.25,144.22,0.05116992]
[1723699710211,0.04830288,144.25,144.22,0.05116992]
[1723699710415,10.69830288,144.25,144.22,0.05116992]
[1723699710717,14.1164,144.23,144.22,0.05116992]
[1723699713924,6.931,144.22,144.13,10.65]
[1723699714215,10.65,144.19,144.13,10.65]
[1723699714415,3.4679,144.17,144.13,10.65]
[1723699714621,10.65,144.19,144.13,10.65]
[1723699714917,0.05202969,144.17,144.15,0.04506977]
[1723699715517,3.51992969,144.17,144.15,0.04506977]
[1723699717909,3.4681,144.16,144.15,0.04506977]
[1723699728040,0.05202969,144.17,144.15,0.04506977]
[1723699728041,3.52002969,144.17,144.15,0.04506977]
[1723699730817,3.4681,144.16,144.15,0.04506977]
[1723699731027,14.1181,144.16,144.15,0.04506977]
[1723699734225,3.4681,144.16,144.15,0.04506977]
[1723699734530,18.6381,144.16,144.15,0.04506977]
[1723699736031,0.05202969,144.17,144.15,0.04506977]
[1723699738229,0.05202969,144.17,144.16,3.4681]
[1723699738735,14.1167,144.22,144.18,3.4675]
[1723699739935,0.05077938,144.21,144.19,0.04371685]
[1723699741434,3.51787938,144.21,144.19,0.04371685]
[1723699741833,0.05077938,144.21,144.19,0.04371685]
[1723699744532,3.51767938,144.21,144.19,0.04371685]
[1723699744937,0.05077938,144.21,144.19,0.04371685]
[1723699747040,0.05077938,144.21,144.19,3.51101685]
[1723699747242,0.05077938,144.21,144.19,0.04371685]
[1723699749337,3.51767938,144.21,144.19,0.04371685]
[1723699749737,0.05077938,144.21,144.19,3.51101685]
[1723699750333,0.05077938,144.21,144.2,3.4671]
[1723699751441,0.05077938,144.21,144.19,0.04371685]
[1723699751833,0.05077938,144.21,144.19,3.51111685]
[1723699752841,3.51767938,144.21,144.19,0.04371685]
[1723699753038,0.05077938,144.21,144.19,0.04371685]
[1723699753438,0.05077938,144.21,144.19,3.51091685]
[1723699753741,0.05077938,144.21,144.19,0.04371685]
[1723699754043,0.05077938,144.21,144.2,3.4671]
[1723699755335,0.05077938,144.21,144.19,3.51101685]
[1723699756137,0.05077938,144.21,144.2,3.4671]
[1723699760443,0.05077938,144.21,144.19,0.04371685]
[1723699760943,3.4671,144.2,144.19,0.04371685]
[1723699761140,14.1171,144.2,144.19,0.04371685]
[1723699761542,17.581,144.2,144.12,14.15530844]
[1723699761843,10.65,144.18,144.12,10.65]
[1723699762048,3.4677,144.18,144.14,3.4684]
[1723699762348,10.65,144.2,144.14,3.4684]
[1723699762744,3.5208568,144.18,144.16,0.0518839]
[1723699763549,0.0529568,144.18,144.16,0.0518839]
[1723699765756,3.5205568,144.18,144.16,0.0518839]
[1723699767550,0.0529568,144.18,144.16,0.0518839]
[1723699768845,0.0529568,144.18,144.16,3.5199839]
[1723699773457,0.0529568,144.18,144.17,3.4679]
[1723699773654,0.0529568,144.18,144.17,14.1179]
[1723699775161,15.11,144.24,144.19,3.4673]
[1723699775563,15.11,144.24,144.18,3.4675]
[1723699775864,10.65,144.22,144.18,3.4675]
[1723699776065,0.04915012,144.21,144.19,3.51178115]
[1723699779765,0.04915012,144.21,144.19,0.04438115]
[1723699780965,3.51605012,144.21,144.19,0.04438115]
[1723699781165,0.04915012,144.21,144.19,0.04438115]
[1723699781669,3.51605012,144.21,144.19,0.04438115]
[1723699782477,3.4671,144.2,144.19,0.04438115]
[1723699789571,0.04915012,144.21,144.19,0.04438115]
[1723699789975,3.4671,144.2,144.19,0.04438115]
[1723699791779,3.51615012,144.21,144.19,0.04438115]
[1723699793284,3.4671,144.2,144.19,0.04438115]
[1723699795892,3.51615012,144.21,144.19,0.04438115]
[1723699798287,0.04915012,144.21,144.19,0.04438115]
[1723699798603,27.74,144.32,144.19,0.04438115]
[1723699798795,10.65,144.29,144.22,10.65]
[1723699798986,10.65,144.29,144.23,3.54328523]
[1723699799486,3.4654,144.28,144.24,3.466]
[1723699799891,0.04376711,144.27,144.25,0.05178241]
[1723699800289,10.69376711,144.27,144.25,0.05178241]
[1723699802398,10.65,144.26,144.25,0.05178241]
[1723699802784,21.0507,144.26,144.25,0.05178241]
[1723699802997,21.07328341,144.26,144.15,4.38]
[1723699803201,14.1172,144.2,144.16,3.4679]
[1723699803397,14.1172,144.2,144.16,20.50772181]
[1723699803701,14.1172,144.2,144.16,3.4679]
[1723699804101,3.4675,144.19,144.16,3.4679]
[1723699804787,3.4676,144.18,144.17,0.04513202]
[1723699804999,14.1176,144.18,144.17,0.04513202]
[1723699806494,3.4676,144.18,144.17,0.04513202]
[1723699806895,14.16208029,144.19,144.17,0.04513202]
[1723699808001,0.04458029,144.19,144.17,0.04513202]
[1723699808502,0.04458029,144.19,144.17,3.51283202]
[1723699810307,0.04458029,144.19,144.18,3.4676]
[1723699811594,0.04458029,144.19,144.18,20.50342273]
[1723699811997,0.04458029,144.19,144.18,3.4676]
[1723699816800,0.04458029,144.19,144.18,14.1176]
[1723699817302,4.38,144.25,144.2,3.467]
[1723699817499,15.03,144.25,144.2,3.467]
[1723699817698,3.4663,144.24,144.18,10.65]
[1723699818401,3.4663,144.24,144.19,17.03234344]
[1723699818600,3.4663,144.24,144.18,10.65]
[1723699819007,0.04757091,144.22,144.2,0.04606047]
[1723699819807,0.04757091,144.22,144.21,3.4668]
[1723699823807,10.65,144.27,144.24,3.4661]
[1723699824304,15.03,144.29,144.24,3.4661]
[1723699824710,3.4656,144.27,144.24,3.4661]
[1723699824914,3.4656,144.27,144.25,0.04879533]
[1723699825210,10.65,144.26,144.25,0.04879533]
[1723699825817,14.1157,144.26,144.25,0.04879533]
[1723699831324,0.05339111,144.28,144.25,0.04879533]
[1723699831823,3.4655,144.27,144.25,0.04879533]
[1723699833518,3.51869111,144.28,144.25,0.04879533]
[1723699833720,3.51869111,144.28,144.25,3.51469533]
[1723699833924,0.05339111,144.28,144.25,3.51469533]
[1723699834626,3.51859111,144.28,144.25,3.51469533]
[1723699835022,3.51859111,144.28,144.25,0.04879533]
[1723699835420,14.16859111,144.28,144.25,0.04879533]
[1723699836022,14.16859111,144.28,144.25,3.51469533]
[1723699836226,10.70339111,144.28,144.25,3.51469533]
[1723699836526,0.05339111,144.28,144.26,3.4657]
[1723699837025,0.05339111,144.28,144.25,0.04879533]
[1723699837629,0.05339111,144.28,144.26,3.4656]
[1723699838025,0.05339111,144.28,144.25,0.04879533]
[1723699838230,3.4656,144.27,144.25,0.04879533]
[1723699839118,14.16869111,144.28,144.25,0.04879533]
[1723699839728,14.16869111,144.28,144.25,3.51459533]
[1723699840429,3.51869111,144.28,144.25,3.51459533]
[1723699840822,0.05339111,144.28,144.26,3.4657]
[1723699842524,3.51869111,144.28,144.25,0.04879533]
[1723699842723,0.05339111,144.28,144.25,0.04879533]
[1723699843129,0.05339111,144.28,144.25,3.51449533]
[1723699843323,0.05339111,144.28,144.25,0.04879533]
[1723699844433,0.05339111,144.28,144.26,3.4657]
[1723699844634,0.05339111,144.28,144.25,0.04879533]
[1723699845534,10.70339111,144.28,144.25,0.04879533]
[1723699845734,3.4656,144.27,144.25,0.04879533]
[1723699845935,10.70339111,144.28,144.25,0.04879533]
[1723699846432,3.4657,144.26,144.25,0.04879533]
[1723699852438,14.1157,144.26,144.25,0.04879533]
[1723699853030,21.0507,144.26,144.25,0.04879533]
[1723699853231,3.467,144.21,144.17,4.4]
[1723699853440,10.65,144.22,144.16,11.9965]
[1723699853635,10.65,144.22,144.17,3.4676]
[1723699853935,10.65,144.22,144.16,11.9965]
[1723699854135,14.1168,144.22,144.16,11.9965]
[1723699854337,14.1168,144.22,144.18,3.4675]
[1723699854738,0.05038605,144.2,144.18,0.04517469]
[1723699855130,0.05038605,144.2,144.19,3.4672]
[1723699855731,0.05038605,144.2,144.18,3.51267469]
[1723699860539,0.05038605,144.2,144.18,0.04517469]
[1723699861435,3.4674,144.19,144.18,0.04517469]
[1723699861839,0.05038605,144.2,144.18,0.04517469]
[1723699862040,3.51768605,144.2,144.18,0.04517469]
[1723699862338,0.05038605,144.2,144.18,0.04517469]
[1723699862535,3.4674,144.19,144.18,0.04517469]
[1723699863145,14.1174,144.19,144.18,0.04517469]
[1723699867641,3.4682,144.16,144.12,3.469]
[1723699868245,15.05,144.2,144.13,10.65]
[1723699868446,15.05,144.2,144.13,14.18464962]
[1723699868742,10.65,144.21,144.15,10.65]
[1723699868946,0.04745514,144.18,144.15,10.69796288]
[1723699869344,0.04745514,144.18,144.17,10.65]
[1723699869749,0.04745514,144.18,144.17,14.1179]
[1723699869948,0.04745514,144.18,144.16,1.3246]
[1723699870447,0.04745514,144.18,144.17,3.4679]